Cogmind - Beta 17.1 @@@ ROGUE MODE // 2026.08.30 @ 22:58:55 Player: opdo Result: Destroyed by Autobeam Turret with Autobeam Performance ------------- Evolutions (0) 0 Regions Visited (3) 600 Robots Destroyed (20) 100 Value Destroyed (523) 523 Prototype IDs (0) 0 Alien Tech Used (0) 0 Bonus (0) 0 TOTAL SCORE: 1223 Bonus ------- None Cogmind --------- Core Integrity 0/250 Matter 280/300 Energy 234/250 System Corruption 0% Temperature Cool (74) Movement Treading (160) Location -10/Subcaves Parts ------- > --- POWER (1) -------- Ion Engine > --- PROPULSION (2) --- Light Treads Spiked Treads > --- UTILITY (2) ------ Large Storage Unit Makeshift Light Armor Plating > --- WEAPON (2) ------- Beam Rifle Subdweller Beam Cannon > --- INVENTORY (15) --- Subdweller Power Source Subdweller Power Source Light Treads Light Treads Subdweller Monowheel Disposable Heat Sink Structural Scanner Subdweller Optics Improved Terrain Scanner Terrain Scan Processor Beam Rifle Beam Rifle Subdweller Machine Gun Heavy Hammer Peak State ------------ > --- POWER ------------ Ion Engine > --- PROPULSION ------- Light Treads Spiked Treads > --- UTILITY ---------- Large Storage Unit Makeshift Light Armor Plating > --- WEAPON ----------- Beam Rifle Beam Rifle > --- INVENTORY -------- Subdweller Power Source Subdweller Power Source Light Treads Light Treads Light Treads Subdweller Monowheel Subdweller Optics Improved Terrain Scanner Terrain Scan Processor Beam Rifle Subdweller Beam Cannon Subdweller Machine Gun Heavy Hammer [Rating: 15] Favorites ----------- Power Ion Engine Engine Ion Engine Propulsion Light Treads Treads Light Treads Leg Aluminum Leg Utility Large Storage Unit Device Seismic Detector Storage Large Storage Unit Protection Makeshift Light Armor Plating Weapon Small Laser Energy Gun Small Laser Energy Cannon Subdweller Beam Cannon Build | -11 -10 -10 -10 ------- Run | Yrd Mat Min Sub Slots Evolved . | . . . . Power . | . . . . Propulsion . | . . . . Utility . | . . . . Weapon . | . . . . Parts Attached 22 | 7 8 . 7 Power 2 | 1 1 . . Engine 2 | 1 1 . . Core . | . . . . Reactor . | . . . . Propulsion 8 | 2 4 . 2 Treads 4 | . 2 . 2 Leg 4 | 2 2 . . Wheel . | . . . . Hover . | . . . . Flight . | . . . . Utility 5 | 2 1 . 2 Device 2 | 1 . . 1 Storage 2 | 1 1 . . Processor . | . . . . Hackware . | . . . . Protection 1 | . . . 1 Artifact . | . . . . Weapon 7 | 2 2 . 3 Energy Gun 6 | 2 2 . 2 Energy Cannon 1 | . . . 1 Ballistic Gun . | . . . . Ballistic Cannon . | . . . . Launcher . | . . . . Special Weapon . | . . . . Impact Weapon . | . . . . Slashing Weapon . | . . . . Piercing Weapon . | . . . . Special Melee Weapon . | . . . . Unidentified Prototypes . | . . . . Parts Lost 5 | . 1 . 4 Power 1 | . 1 . . Propulsion 2 | . . . 2 Utility . | . . . . Weapon 2 | . . . 2 Highest Loss Streak 2 | . 1 . 2 To Critical Strikes 1 | . . . 1 Average Backups 12 | 1 11 15 14 Power 1 | . 1 2 2 Propulsion 4 | . 4 6 4 Utility 1 | . 1 1 3 Weapon 4 | . 4 5 5 Tool/Special . | . . . . Unused Backups 21 | . 2 2 17 Power 4 | . . . 4 Propulsion 8 | . 1 2 5 Utility 4 | . . . 4 Weapon 5 | . 1 . 4 Tool/Special . | . . . . Average Slot Usage (%) 99 | . 99 100 100 Engine 13 | . 13 14 14 Treads 20 | . 10 28 28 Leg 7 | . 17 . . Device 13 | . 14 14 11 Storage 14 | . 14 14 14 Energy Gun 27 | . 28 28 27 Peak Build Rating 15 | 7 9 9 15 Average Rating 9 | 5 8 9 10 On Entrance 6 | . 7 9 9 Avg Prop Armor Cover (%) . | . . . . Naked Turns . | . . . . Heaviest Build 40 | 13 30 28 40 Greatest Support 40 | 20 40 40 40 Greatest Overweight (x) 3 | 3 1 . . Average Overweight (x) . | . . . . Largest Inventory Capacity 15 | 8 15 15 15 Average Capacity 14 | 7 13 15 15 Most Carried 15 | 4 15 15 15 Average Carried 12 | 1 11 14 14 Final Capacity 15 | 8 15 15 15 Final Carried 15 | 4 15 15 14 Class Distribution -------------------- 51% | Scavenger-Mutant 48% | Mutant Dominant Class ---------------- Mutant | -10/Materials Scavenger-Mutant | -10/Mines Scavenger-Mutant | -10/Subcaves Resources | -11 -10 -10 -10 ----------- Run | Yrd Mat Min Sub Matter Collected 437 | 149 218 20 50 Remotely . | . . . . Salvage Created 639 | 14 287 14 324 Parts 43 | 2 16 5 20 Haulers Intercepted 1 | . 1 . . Recyclers Shooed . | . . . . Parts Field Recycled . | . . . . Retrieved Matter . | . . . . Parts Self-Destructed 16 | . . . 16 Prevented . | . . . . Parts Restored . | . . . . Kills | -11 -10 -10 -10 ------- Run | Yrd Mat Min Sub Combat Hostiles Destroyed 15 | . 5 . 10 Guns 15 | . 5 . 10 Classes Destroyed 8 | 1 3 1 3 Builder 1 | . . 1 . Tunneler 1 | 1 . . . Hauler 1 | . 1 . . Turret 1 | . . . 1 Watcher 1 | . 1 . . Swarmer 4 | . . . 4 Grunt 5 | . 5 . . Subdweller 6 | . . . 6 Best Kill Streak 4 | 1 2 1 4 Combat Bots Only 4 | . 2 . 4 Max Kills in Single Turn 1 | 1 1 1 1 Gunslinging . | . . . . Exploded . | . . . . Melee . | . . . . Uniques/NPCs Destroyed . | . . . . Combat | -11 -10 -10 -10 -------- Run | Yrd Mat Min Sub Hostile Shots Fired 174 | . 30 . 144 Missed 69 | . 10 . 59 Hits 105 | . 20 . 85 Projectile 105 | . 20 . 85 Critical Strikes 1 | . . . 1 Damage Taken 1131 | . 259 . 872 Core 250 | . 53 . 197 Absorbed by Shields . | . . . . Core Remaining (%) 100 | 100 . . . Volleys Fired 66 | 1 25 1 39 Largest 2 | 2 2 2 2 Hottest 136 | 100 100 80 136 Shots Fired 130 | 2 50 2 76 Gun 128 | 2 50 2 74 Cannon 2 | . . . 2 Launcher . | . . . . Special . | . . . . Kinetic . | . . . . Thermal 130 | 2 50 2 76 Explosive . | . . . . Electromagnetic . | . . . . Robot Hit Streak 13 | 1 13 3 11 Robot Miss Streak 5 | 1 3 . 5 Penetration Max . | . . . . Secondary Targets 2 | . . . 2 Max Gunslinging Chain 1 | . . . 1 Shots Hit Robots 90 | 1 33 2 54 Core Hits 37 | 1 15 1 20 Critical Kills . | . . . . Critical Parts Destroyed . | . . . . Critical Strikes 3 | . . . 3 Burn 3 | . . . 3 Melee Attacks . | . . . . Impact . | . . . . Slashing . | . . . . Piercing . | . . . . Sneak Attacks . | . . . . Combat Hostiles . | . . . . Follow-up Attacks . | . . . . Damage Inflicted 1214 | 13 437 23 741 Guns 1187 | 13 437 23 714 Cannons 27 | . . . 27 Explosions . | . . . . Melee . | . . . . Ramming . | . . . . Kinetic . | . . . . Thermal 1214 | 13 437 23 741 Explosive . | . . . . Electromagnetic . | . . . . Impact . | . . . . Slashing . | . . . . Piercing . | . . . . Highest Corruption . | . . . . Average Corruption . | . . . . Corruption Purged . | . . . . Corruption Blocked . | . . . . Overload Shots . | . . . . Overflow Damage . | . . . . Projectiles . | . . . . Explosions . | . . . . Melee . | . . . . Knockbacks . | . . . . Impact . | . . . . Kinetic . | . . . . Secondary . | . . . . Self-Inflicted Damage . | . . . . Shots . | . . . . Rammed . | . . . . Targets Rammed . | . . . . Kicked . | . . . . Crushed . | . . . . Highest Temperature 465 | 39 465 18 181 Average Temperature 124 | 20 149 12 69 Received Heat Transfer 438 | . 144 . 294 Effects 3 | . 3 . . Shutdowns 1 | . 1 . . Energy Bleed 1 | . 1 . . Matter Decay 1 | . 1 . . Siege Activations . | . . . . Martial Activations . | . . . . Shielding Activations . | . . . . Robots Disrupted . | . . . . Combat Hostiles . | . . . . Robots Corrupted . | . . . . Combat Hostiles . | . . . . Parts Fried . | . . . . Impact Corruptions . | . . . . Robots Melted . | . . . . Combat Hostiles . | . . . . Parts Melted 5 | . 2 . 3 Heat Transferred 3400 | 37 1295 50 2018 Parts Sabotaged . | . . . . Parts Stolen . | . . . . Parts Stripped . | . . . . Power Chain Reactions . | . . . . Alert | -11 -10 -10 -10 ------- Run | Yrd Mat Min Sub Maximum Alert Level . | . . . . Low Security (%) 100 | 100 100 100 . Level 1 . | . . . . Level 2 . | . . . . Level 3 . | . . . . Level 4 . | . . . . Level 5 . | . . . . High Security . | . . . . Max Security . | . . . . Peak Influence 42 | 5 42 5 . Initial . | . . . . Average 5 | . 7 . . Influence Increases 338 | 5 153 5 175 Destroy 0b10 Robot/C 200 | . 100 . 100 Destroy 0b10 Robot/NC 20 | 5 10 5 . Destroy Leader 24 | . 24 . . Successful Hack 19 | . 19 . . Lose Combat Pursuer 75 | . . . 75 Influence Decreases 259 | 5 153 5 96 Time Decay 229 | 5 153 5 66 Lost Part 30 | . . . 30 Squads Dispatched 1 | . 1 . . Investigation 1 | . 1 . . Extermination . | . . . . Reinforcement . | . . . . Assault . | . . . . Garrison . | . . . . Intercept . | . . . . Searches Triggered . | . . . . Construction Impeded . | . . . . Haulers Reinforced . | . . . . Active Scanning Responses . | . . . . Cargo Convoy Interrupts . | . . . . Stealth | -11 -10 -10 -10 --------- Run | Yrd Mat Min Sub Distress Signals 2 | . 2 . . Communications Jammed . | . . . . Distress Signals . | . . . . Times Spotted 22 | . 8 . 14 Peak Tracking Total 5 | . 3 . 5 Tactical Retreats 2 | . . . 2 Traps | -11 -10 -10 -10 ------- Run | Yrd Mat Min Sub Traps Triggered 1 | . 1 . . Indirectly . | . . . . Trap Hack Attempts . | . . . . Triggered . | . . . . Disarmed . | . . . . Reprogrammed . | . . . . Reused . | . . . . Traps Extracted . | . . . . Installed . | . . . . Triggered . | . . . . Machines | -11 -10 -10 -10 ---------- Run | Yrd Mat Min Sub Machines Disabled 2 | . . . 2 Max in Single Turn 1 | . . . 1 Machines Repaired . | . . . . Machines Dismantled . | . . . . Machines Sabotaged . | . . . . Overloaded Fab Kills . | . . . . Hacking | -11 -10 -10 -10 --------- Run | Yrd Mat Min Sub Machines Accessed 5 | . 5 . . Terminals 5 | . 5 . . Fabricators . | . . . . Repair Stations . | . . . . Recycling Units . | . . . . Scanalyzers . | . . . . Garrison Access . | . . . . Total Hacks 18 | . 18 . . Successful 7 | . 7 . . Failed 11 | . 11 . . Catastrophic 2 | . 2 . . Database Lockouts . | . . . . Manual 15 | . 15 . . Terminals 18 | . 18 . . Fabricators . | . . . . Repair Stations . | . . . . Recycling Units . | . . . . Scanalyzers . | . . . . Garrison Access . | . . . . Terminal Hacks 1 | . 1 . . Hauler Manifests 1 | . 1 . . Fabricator Hacks . | . . . . Repair Station Hacks . | . . . . Recycling Unit Hacks . | . . . . Scanalyzer . | . . . . Garrison Access Hacks . | . . . . Unauthorized Hacks 6 | . 6 . . Terminals 6 | . 6 . . Botnet 1 | . 1 . . Skim 5 | . 5 . . Fabricators . | . . . . Repair Stations . | . . . . Recycling Units . | . . . . Scanalyzers . | . . . . Garrison Access . | . . . . Data Cores Recovered . | . . . . Used . | . . . . Hacking Detections 5 | . 5 . . Full Trace Events . | . . . . Feedback Events . | . . . . Feedback Blocked . | . . . . Robot Schematics Acquired . | . . . . Robots Built . | . . . . Authchips . | . . . . Time . | . . . . Total Robot Build Rating . | . . . . Part Schematics Acquired . | . . . . Parts Built . | . . . . Authchips . | . . . . Time . | . . . . Total Part Build Rating . | . . . . Part Studies Acquired . | . . . . Parts Repaired . | . . . . Time . | . . . . Parts Recycled . | . . . . Recycled Matter . | . . . . Retrieved Matter . | . . . . Retrieved Components . | . . . . Parts Scanalyzed . | . . . . Part Schematics Acquired . | . . . . Parts Damaged . | . . . . Bothacking | -11 -10 -10 -10 ------------ Run | Yrd Mat Min Sub Used RIF Installer . | . . . . Robots Hacked . | . . . . Non-combat . | . . . . Combat . | . . . . Robot Hacks Applied . | . . . . Relay Couplers Released . | . . . . Fabnet Peak Effective % . | . . . . Robots Rewired . | . . . . Allies Hacked . | . . . . Hacks Repelled . | . . . . Allies | -11 -10 -10 -10 -------- Run | Yrd Mat Min Sub Total Allies . | . . . . Largest Group . | . . . . Highest-Rated Group . | . . . . Highest-Rated Ally . | . . . . Total Orders . | . . . . Ally Attacks . | . . . . Total Damage . | . . . . Kills . | . . . . Allies Corrupted . | . . . . Allies Melted . | . . . . Intel | -11 -10 -10 -10 ------- Run | Yrd Mat Min Sub Active Infowar (turns) 1464 | 12 719 301 432 Structural 432 | . . . 432 Seismic 1032 | 12 719 301 . Robot Analysis Total . | . . . . Derelict Logs Recovered 3 | . . 1 2 Drone Launches . | . . . . Drone Recoveries . | . . . . Exploration | -11 -10 -10 -10 ------------- Run | Yrd Mat Min Sub Turns Passed 1633 | 76 719 301 537 Spaces Moved 756 | 47 282 185 242 Core 11 | 11 . . . Treads 496 | . 69 185 242 Legs 249 | 36 213 . . Wheels . | . . . . Hover . | . . . . Flight . | . . . . Fastest Speed 50 | 50 120 160 160 Average Speed 157 | 125 158 160 160 Slowest Speed 240 | 200 240 160 160 Overloaded Moves . | . . . . Propulsion Burnouts . | . . . . Robots Hopped . | . . . . Potential Cave-ins . | . . . . Cave-ins Triggered . | . . . . Exploration Rate (%) 27 | 4 44 39 21 Regions Visited 3 Branch Regions 2 Pre-discovered Areas 1 | . . . 1 Known Exits Taken 2 | . 1 1 . Unknown Exits Taken 1 | 1 . . . Scrap Searched 2 | . . 1 1 Spaces Dug . | . . . . Terrain Destroyed . | . . . . Melee . | . . . . Projectile . | . . . . AOE . | . . . . Terrain Rammed . | . . . . Walls Destroyed . | . . . . Machines Disabled . | . . . . Actions | -11 -10 -10 -10 --------- Run | Yrd Mat Min Sub Total 1071 | 58 505 189 319 Wait 182 | . 166 . 16 Move 753 | 46 281 184 242 Hop . | . . . . Pick Up 29 | 4 14 2 9 Fast Attach 9 | 7 2 . . Attach 4 | . . . 4 Detach . | . . . . Swap 10 | . 7 . 3 Drop 18 | . 10 2 6 Fire 66 | 1 25 1 39 Melee . | . . . . Ram . | . . . . Kick . | . . . . Crush . | . . . . Escape Stasis . | . . . . Rewire . | . . . . Trap . | . . . . Miscellaneous . | . . . . Route ------- -11/Scrapyard -10/Materials (discovered 5 exits: *Mat x2 / *Min x2 / *Sub) -10/Mines (discovered 2 exits: *Mat / *Sub) -10/Subcaves (discovered 2 exits: Mat / *Rec) History --------- Turn | Location | Event 8 | -11/Scrapyard | Discovered new exit (range 16) 77 | -11/Scrapyard | Entered Materials 292 | -10/Materials | Discovered new exit (range 8) 318 | -10/Materials | Build established: Mutant 374 | -10/Materials | Discovered new exit (range 4) 517 | -10/Materials | Discovered new exit (range 12) 530 | -10/Materials | Learned 2 Mines zone layouts 588 | -10/Materials | Learned location of 2 exits from Subcaves 636 | -10/Materials | Learned 4 Recycling zone layouts 707 | -10/Materials | Learned 2 Mines zone layouts 728 | -10/Materials | Identified exit to Mines 728 | -10/Materials | Identified exit to Materials 777 | -10/Materials | Derelicts attacked the area 796 | -10/Materials | Entered Mines 797 | -10/Mines | Identified exit to Subcaves 930 | -10/Mines | Build established: Scavenger-Mutant 945 | -10/Mines | Learned Materials emergency access door positions 1030 | -10/Mines | Discovered exit to Materials (range 9) 1097 | -10/Mines | Entered Subcaves 1098 | -10/Subcaves | Approached by a straggling Scientist 1098 | -10/Subcaves | Identified exit to Recycling 1098 | -10/Subcaves | Identified exit to Materials 1109 | -10/Subcaves | Learned Materials stockpile data 1119 | -10/Subcaves | Shifting Twisted Machinery released Sub. Beam Cannon 1121 | -10/Subcaves | Shifting Twisted Machinery released Sub. Power Source 1310 | -10/Subcaves | Learned location of Zion (-7) 1310 | -10/Subcaves | Met a Zionite searching for "candidates" 1480 | -10/Subcaves | Core integrity fell below 50% 1529 | -10/Subcaves | Disturbed a concealed Subdweller 1614 | -10/Subcaves | Core integrity fell below 20% 1634 | -10/Subcaves | Destroyed by Autobeam Turret with Autobeam Last Messages --------------- Twisted Machinery. 01529_ Acquired Mak. Light Armor Plating. 01531_ OR-NQS(R) suffers critical hit (Burn). 01535_ OR-NQS(R) affixes Scrap Shield Fragment to Scrap Shield. 01537_ Sub. Optics melted. 01537_ OR-NQS(R) destroyed. 01541_ Acquired 10 matter. 01549_ Acquired Structural Scanner. 01552_ Acquired Disposable Heat Sink. 01567_ Acquired derelict log, extracted data. Data stored: Recycling entrances (x1). 01601_ Lgt. Treads destroyed. 01609_ Autobeam Turret suffers critical hit (Burn). 01614_ Autobeam Turret heat damages Autobeam. 01615_ Autobeam Turret destroyed. 01615_ Switching to secondary target: Autobeam Turret. 01629_ Machine disabled. Map ----- +----------------------------------------------------+ | ????????????????????????????????????????????????## | | ????????????????????????????????????????????????## | | ????????????????????????????????????????????????## | | ????????????????????????????????????????????????## | | ?????????????????????????????????????????????????? | | ?????????????????????????????????????????????????? | | ?????????????????????????????????????????????????? | | ?????????????????????????????????????????????????? | | ?????????????????????????????????????????????????# | | ?????????????????????????????????????????????###?# | | ????????????????????????????????????????????### | | ????????????????????????????????????????????## | | ????????????????????????????????????????????## # | | ?????????????????????????????????????????????? ? # | | ????????????????????????????????????????????????? | | ?????????????????????????????????????????????????? | | ?????????????????????????????????????????????????? | | ?????????????????????????????????????????? ##????? | | ????????????????????????????????????????? ##????? | | ???????????????????????????????????????? ##????? | | ??????????????????????????????????????? ##???? | | ???????????????????????????????######## ##???? | | ????????????? ? ###################### # ???? | | ??????????# ################ ## # # # ?????? | | ???????????"" % "" #### # ? ##?? | | ??????????> @ "### " ##?## ? | | ???????????""t " ## " ##### | | ??????????# ######## " %% ##"## ###### # | | ???????????????? # # # # "" %=% ### "# ##### | | ????????????????"# """ ##% " ###### | | ??????????########## "" ### ####### | | ??????????######### # ## #### # ####### | | ??????????## ## ##### ###### ### # ## | | ??????????## &"##" # ## ##### ## | | ??????????###%& #### ## % | | ??????????## &#%#" ## ### ## #### | | ??????????## ### #### ### ### ! ###### | | ??????????######## #### ### ### [%/##### | | ???????????????### ##### #### ### ! ##?## | | ????????????????## ### ##### ### ####?### | | ????????????????### ##?# ##### ### #####?### | | ????????????????########?# #??## ########?????# | | ????????????????? # # ? ##?? #######??????? | | ????????????????????????? #??? #???????????? | | ????????????????????????? ???#### ????????????? | | ?????????????????????????###???##### ????????????? | | ??????????????????????????????????###????????????? | | ?????????????????????????????????????????????????? | | ?????????????????????????????????????????????????? | | ?????????????????????????????????????????????????? | +----------------------------------------------------+ Best States ------------- Heat Dissipation 25 Energy Generation 10 Energy Capacity 250 Matter Stores 300 Matter Capacity 300 Sight Range 16 Terrain Scan Density 10 Armor Coverage 100 Evasion (%) 55 Recoil Reduction 2 Item Schematics ----------------- None Robot Schematics ------------------ None Fabricated ------------ Nothing Repaired ---------- Nothing Studied --------- None Alien Tech Used ----------------- None Achievements -------------- None Challenges ------------ None Game ------ Seed RingFusionKinecellerator Manual? 0 Play Time 00:10:19 Cumulative 163.0 hours Start 2026.08.29 @ 14:07:50 End 2026.08.30 @ 22:58:55 Sessions 3 Manual Loads 0 Difficulty Rogue Special Mode None Game No. 405 Rogue 403 Adventurer 2 Explorer 0 Win Type - Total 3 Types 3/0/0/0/0/0/0/0/0/0 Lore% 80 Gallery% 62 Achievement% 47 Wizard Run 0 Options --------- Layout 2 ASCII 0 Keyboard 0 Movement Numpad Keybinds 0 Fullscreen 2 Font 24/Smallcaps Map View 50x44 Zoom Use 0% Tactical HUD 1 Map Filters NONE Filters NONE Steam 1 RUN: 6c697404-ca2c-4dab-ba3c-5a95013c448e